bitfinex-derivatives/quotes_BTCF0:USTF0_20250814
["timestamp","ask_amount","ask_price","bid_price","bid_amount"]
[1755195269428,1.22332558,117780.0,117770.0,0.57100548]
[1755195269926,1.22332558,117780.0,117770.0,0.49669548]
[1755195271720,1.22332558,117780.0,117770.0,0.11780548]
[1755195272524,1.22332558,117780.0,117770.0,0.16338548]
[1755195272726,1.22332558,117780.0,117770.0,0.57100548]
[1755195273115,0.95383558,117780.0,117770.0,1.27860855]
[1755195273429,1.17711558,117780.0,117770.0,0.57100548]
[1755195274030,1.22332558,117780.0,117770.0,0.57100548]
[1755195275527,1.22332558,117780.0,117770.0,0.11780548]
[1755195276230,1.93092865,117780.0,117770.0,0.11780548]
[1755195276424,2.01659345,117780.0,117770.0,0.11780548]
[1755195276623,1.93172865,117780.0,117770.0,0.11780548]
[1755195276822,2.01659345,117780.0,117770.0,0.11780548]
[1755195277022,1.93092865,117780.0,117770.0,0.11780548]
[1755195277224,1.22332558,117780.0,117770.0,0.11780548]
[1755195278330,1.22332558,117780.0,117770.0,0.16338548]
[1755195281638,1.22332558,117780.0,117770.0,0.11780548]
[1755195281935,1.30819038,117780.0,117770.0,0.11780548]
[1755195282340,1.22332558,117780.0,117770.0,0.11780548]
[1755195282841,1.22332558,117780.0,117770.0,0.16338548]
[1755195283540,1.22332558,117780.0,117770.0,0.11780548]
[1755195283931,1.22332558,117780.0,117770.0,0.16338548]
[1755195284527,0.43691558,117780.0,117770.0,0.52197548]
[1755195284735,1.35018558,117780.0,117770.0,0.57100548]
[1755195285240,1.35018558,117780.0,117770.0,0.44766548]
[1755195285441,1.35018558,117780.0,117770.0,0.19538548]
[1755195285645,1.35018558,117780.0,117770.0,0.11780548]
[1755195285829,1.35018558,117780.0,117770.0,0.16338548]
[1755195286034,1.35018558,117780.0,117770.0,0.57100548]
[1755195287140,1.33362,117780.0,117770.0,0.57100548]
[1755195287443,1.35090097,117780.0,117770.0,0.57100548]
[1755195287831,0.46866097,117780.0,117770.0,0.57100548]
[1755195288028,1.35070097,117780.0,117770.0,0.57100548]
[1755195288939,0.46866097,117780.0,117770.0,1.27860855]
[1755195289142,0.94787097,117780.0,117770.0,1.27860855]
[1755195289342,1.35026097,117780.0,117770.0,0.57100548]
[1755195294045,1.35026097,117780.0,117770.0,0.11780548]
[1755195295547,1.35026097,117780.0,117770.0,0.16586548]
[1755195295740,1.35026097,117780.0,117770.0,0.45296548]
[1755195295940,1.35026097,117780.0,117770.0,0.57099548]
[1755195296145,1.35026097,117780.0,117770.0,0.45296548]
[1755195296348,1.35026097,117780.0,117770.0,0.16586548]
[1755195300146,1.35026097,117780.0,117770.0,0.29688548]
[1755195300450,1.34712097,117780.0,117770.0,1.27859855]
[1755195300640,0.06627097,117780.0,117770.0,1.27859855]
[1755195300836,0.01572208,117780.0,117770.0,1.27859855]
[1755195301054,1.14795,117790.0,117780.0,0.5380548]
[1755195301349,0.09147247,117800.0,117790.0,0.30446]
[1755195301538,1.29457,117820.0,117810.0,0.2889832]
[1755195301743,1.31381716,117820.0,117810.0,0.5380332]
[1755195302049,2.34468716,117820.0,117810.0,0.4200032]
[1755195302249,2.34468716,117820.0,117810.0,0.1329032]
[1755195302742,1.46600716,117820.0,117810.0,0.4682632]
[1755195302941,2.34448716,117820.0,117810.0,0.5380332]
[1755195303141,2.34448716,117820.0,117810.0,0.4682632]
[1755195303345,2.34448716,117820.0,117810.0,0.0848432]
[1755195303850,3.05509023,117820.0,117810.0,0.0858432]
[1755195304146,3.05609023,117820.0,117810.0,0.0858432]
[1755195304542,3.05609023,117820.0,117790.0,0.2545676]
[1755195304543,0.41812,117800.0,117790.0,0.2545676]
[1755195304742,2.05616777,117800.0,117790.0,0.2545676]
[1755195305142,1.3485647,117800.0,117790.0,0.2545676]
[1755195306456,1.3495647,117800.0,117790.0,0.2545676]
[1755195306652,2.05716777,117800.0,117790.0,0.2545676]
[1755195306848,2.14201807,117800.0,117790.0,0.1697104]
[1755195307054,2.14301807,117800.0,117790.0,0.1697104]
[1755195307839,2.05816777,117800.0,117790.0,0.1697104]
[1755195308043,1.3505647,117800.0,117790.0,0.1697104]
[1755195308449,1.3505647,117800.0,117790.0,0.2177704]
[1755195308641,1.3505647,117800.0,117790.0,0.3738504]
[1755195309052,1.3505647,117800.0,117790.0,0.6229004]
[1755195309956,1.2304347,117800.0,117790.0,0.6229004]
[1755195310145,1.3505647,117800.0,117790.0,0.6229004]
[1755195310954,1.3494447,117800.0,117790.0,0.6229004]
[1755195311156,1.3494447,117800.0,117790.0,1.33050347]
[1755195311662,1.3020147,117800.0,117790.0,0.6229004]
[1755195312348,0.2726647,117800.0,117790.0,1.33130347]
[1755195312548,1.13476,117810.0,117800.0,0.5380403]
[1755195312753,0.92082,117810.0,117800.0,1.24644337]
[1755195312954,0.89288007,117810.0,117800.0,1.24644337]
[1755195313653,0.89388007,117810.0,117800.0,1.24744337]
[1755195313844,0.93914007,117810.0,117800.0,1.24744337]
[1755195314246,1.12017007,117810.0,117800.0,1.24744337]
[1755195314655,1.34806007,117810.0,117800.0,1.24844337]
[1755195314970,1.34806007,117810.0,117800.0,0.0868503]
[1755195315157,2.05566314,117810.0,117800.0,0.002]
[1755195315450,2.14130634,117810.0,117800.0,0.002]
[1755195316241,2.14130634,117810.0,117800.0,0.001]
[1755195316452,0.17886,117800.0,117790.0,0.0848532]
[1755195316655,1.17610314,117800.0,117790.0,0.0848532]
[1755195316850,1.26095354,117800.0,117790.0,0.0848532]
[1755195317756,1.26095354,117800.0,117790.0,0.002]
[1755195317956,1.26195354,117800.0,117790.0,0.002]
[1755195318651,1.26275354,117800.0,117790.0,0.002]
[1755195318845,0.45118,117780.0,117770.0,0.28454168]
[1755195319044,1.32946,117780.0,117770.0,0.28454168]
[1755195319251,1.32946,117780.0,117770.0,0.19967158]
[1755195319448,0.19845,117760.0,117750.0,0.169768]
[1755195319647,0.90605307,117760.0,117750.0,0.169768]
[1755195319848,0.44625,117760.0,117750.0,0.0848835]
[1755195320058,1.15385307,117760.0,117750.0,0.0848835]
[1755195320254,1.15385307,117760.0,117750.0,0.11758956]
[1755195320255,0.44625,117760.0,117750.0,0.11758956]
[1755195320455,0.44625,117760.0,117750.0,0.34492956]
[1755195320755,0.44625,117760.0,117750.0,0.57077956]
[1755195320958,0.44725,117760.0,117750.0,0.57077956]
[1755195321160,0.44825,117760.0,117750.0,0.57377956]
[1755195322955,0.44825,117760.0,117750.0,0.50400956]
[1755195323152,1.33145,117760.0,117750.0,0.50400956]
[1755195323351,1.33145,117760.0,117750.0,0.16864956]
[1755195324265,0.44825,117760.0,117750.0,0.24745956]
[1755195324462,0.44825,117760.0,117750.0,0.56866956]
[1755195324656,0.04726,117760.0,117750.0,1.27627263]
[1755195326965,0.46681789,117760.0,117750.0,0.56566956]
[1755195328761,1.35321789,117760.0,117750.0,0.56566956]
[1755195329772,1.37054176,117760.0,117750.0,0.56566956]
[1755195331785,0.48414176,117760.0,117750.0,0.56566956]
[1755195332865,0.41686789,117760.0,117750.0,0.56566956]
[1755195333780,0.48413168,117760.0,117750.0,0.56566956]
[1755195334274,0.46681789,117760.0,117750.0,0.56566956]
[1755195334576,0.48412951,117760.0,117750.0,0.56566956]
[1755195334777,1.36940951,117760.0,117750.0,0.56566956]
[1755195335370,0.48412951,117760.0,117750.0,0.56566956]
[1755195338573,0.46681789,117760.0,117750.0,0.56566956]
[1755195339484,0.002,117760.0,117750.0,1.27327263]
[1755195340182,0.002,117760.0,117750.0,0.56566956]
[1755195340378,0.002,117760.0,117750.0,1.27327263]
[1755195340775,0.002,117760.0,117750.0,2.15771263]
[1755195342884,0.002,117760.0,117750.0,1.27327263]
[1755195343279,0.002,117760.0,117750.0,0.56566956]
[1755195343482,0.01891167,117780.0,117770.0,0.5299519]
[1755195343686,1.33222,117800.0,117790.0,0.5299375]
[1755195343980,1.3495387,117800.0,117790.0,0.5299375]
[1755195344175,0.4631387,117800.0,117790.0,0.5299375]
[1755195344381,1.3004287,117800.0,117790.0,0.5299375]
[1755195344577,2.00803177,117800.0,117790.0,0.2298075]
[1755195344789,2.05878177,117800.0,117790.0,0.0848575]
[1755195345193,2.11940935,117800.0,117790.0,0.0848575]
[1755195345487,2.12240935,117800.0,117790.0,0.0858575]
[1755195345689,2.20825975,117800.0,117790.0,0.001]
[1755195346484,2.14763217,117800.0,117790.0,0.001]
[1755195346682,2.16639546,117800.0,117790.0,0.001]
[1755195347283,2.16559546,117800.0,117790.0,0.0858576]
[1755195348092,2.16639546,117800.0,117790.0,0.001]
[1755195348282,2.22702304,117800.0,117790.0,0.0858576]
[1755195348789,2.22702304,117800.0,117790.0,0.001]
[1755195349187,2.22702304,117800.0,117790.0,0.0858576]
[1755195349490,2.22702304,117800.0,117790.0,0.001]
[1755195349684,2.22702304,117800.0,117780.0,0.2545857]
[1755195349685,0.5306776,117790.0,117780.0,0.0848586]
[1755195349992,1.3162184,117790.0,117780.0,0.0848586]
[1755195350183,1.5049278,117790.0,117780.0,0.0848586]
[1755195350687,1.27450877,117790.0,117780.0,0.0848586]
[1755195350883,1.19165117,117790.0,117780.0,0.0848586]
[1755195351390,1.3371278,117790.0,117780.0,0.0848586]
[1755195351779,1.2522702,117790.0,117780.0,0.0848586]
[1755195351984,1.3371278,117790.0,117780.0,0.0848586]
[1755195352184,0.54466713,117790.0,117780.0,0.2142486]
[1755195352390,1.33054713,117790.0,117780.0,0.5299386]
[1755195352590,1.2699281,117790.0,117780.0,0.5299386]
[1755195356391,1.2199781,117790.0,117780.0,0.2004186]
[1755195356696,1.97608117,117790.0,117780.0,0.0848586]
[1755195357502,1.97608117,117790.0,117780.0,0.2885186]
[1755195357695,2.06093877,117790.0,117780.0,0.0848586]
[1755195359285,0.5216348,117780.0,117770.0,0.2546071]
[1755195359489,1.16169177,117780.0,117770.0,0.0848684]
[1755195359791,1.24655657,117780.0,117770.0,0.0848684]
[1755195360496,1.16169177,117780.0,117770.0,0.0858684]
[1755195361000,1.16269177,117780.0,117770.0,0.0858684]
[1755195361597,1.24755657,117780.0,117770.0,0.085872]
[1755195362393,1.24755657,117780.0,117770.0,0.001]
[1755195362699,1.24755657,117780.0,117760.0,0.3032063]
[1755195362700,0.266662,117770.0,117760.0,0.2546263]
[1755195362899,2.13352377,117770.0,117760.0,0.2546263]
[1755195363490,2.04865177,117770.0,117760.0,0.2546263]
[1755195363689,2.13352377,117770.0,117760.0,0.2546263]
[1755195363894,1.4269207,117770.0,117760.0,0.2546263]
[1755195364093,2.04965177,117770.0,117760.0,0.2566263]
[1755195364290,1.4269207,117770.0,117760.0,0.0868792]
[1755195364491,2.13452377,117770.0,117760.0,0.0868792]
[1755195364793,1.36111245,117770.0,117760.0,0.0868792]
[1755195364987,2.06871552,117770.0,117760.0,0.0868792]
[1755195365203,1.36117564,117770.0,117760.0,0.0868792]
[1755195365399,2.06877871,117770.0,117760.0,0.0868792]
[1755195365697,1.36117564,117770.0,117760.0,0.0868792]
[1755195365885,2.06877871,117770.0,117760.0,0.0868792]
[1755195366088,1.36117564,117770.0,117760.0,0.0868792]
[1755195366288,2.06877871,117770.0,117760.0,0.0868792]
[1755195366490,2.06877871,117770.0,117760.0,0.0848792]
[1755195366688,0.47521564,117770.0,117760.0,0.0858792]
[1755195366895,1.36157564,117770.0,117760.0,0.5388392]
[1755195367490,2.15405071,117770.0,117760.0,0.001]
[1755195367693,1.44644764,117770.0,117760.0,0.0858792]
[1755195367888,2.15405071,117770.0,117760.0,0.0858792]
[1755195368093,2.13666882,117770.0,117760.0,0.001]
[1755195368294,2.13666882,117770.0,117760.0,0.0858792]
[1755195368295,2.154293,117770.0,117760.0,0.0858792]
[1755195368593,2.154293,117770.0,117760.0,0.001]
[1755195369693,0.0848792,117760.0,117750.0,0.20254677]
[1755195369892,0.99166011,117760.0,117750.0,0.20254677]
[1755195370097,1.24664011,117760.0,117750.0,0.20254677]
[1755195370497,1.16176091,117760.0,117750.0,0.20254677]
[1755195370900,1.16176091,117760.0,117750.0,0.25112677]
[1755195371099,1.24664011,117760.0,117750.0,0.20254677]
[1755195371400,1.24664011,117760.0,117750.0,0.20354677]
[1755195372200,1.24664011,117760.0,117750.0,0.001]
[1755195372396,1.24664011,117760.0,117750.0,0.0858864]
[1755195372397,1.24764011,117760.0,117750.0,0.0858864]
[1755195372697,0.54003704,117760.0,117750.0,0.0858864]
[1755195372890,0.54103704,117760.0,117750.0,0.0858864]
[1755195373088,1.24764011,117760.0,117750.0,0.0858864]
[1755195373293,1.24764011,117760.0,117750.0,0.001]
[1755195373294,1.24864011,117760.0,117750.0,0.001]
[1755195373696,1.24864011,117760.0,117750.0,0.0858864]
[1755195373897,1.24864011,117760.0,117750.0,0.001]
[1755195374104,0.5184336,117740.0,117730.0,0.5432491]
[1755195374300,2.14018501,117740.0,117730.0,0.58550173]
[1755195374498,2.14018501,117740.0,117730.0,0.50060393]
[1755195374690,2.14018501,117740.0,117730.0,0.29694393]
[1755195375102,2.14018501,117740.0,117730.0,0.34552393]
[1755195375295,1.43258194,117740.0,117730.0,0.12715343]
[1755195375496,2.14018501,117740.0,117730.0,0.12715343]
[1755195375791,2.20775282,117740.0,117730.0,0.12915343]
[1755195375996,2.20775282,117740.0,117730.0,0.33281343]
[1755195376405,2.20875282,117740.0,117730.0,0.33281343]
[1755195376702,2.20875282,117740.0,117730.0,0.33181343]
[1755195377009,2.20775282,117740.0,117730.0,0.33181343]
[1755195377301,0.47271615,117740.0,117730.0,0.58111343]
[1755195377515,0.91898834,117740.0,117730.0,1.2895165]
[1755195377804,0.91890834,117740.0,117730.0,1.2895165]
[1755195378195,0.02110834,117740.0,117730.0,1.2895165]
[1755195378597,0.65268264,117770.0,117760.0,0.0848792]
[1755195378799,0.65268264,117770.0,117760.0,0.5378392]
[1755195378800,1.68727031,117770.0,117760.0,0.5378392]
[1755195379005,0.91577767,117770.0,117760.0,0.5386392]
[1755195379197,0.33415,117760.0,117750.0,0.38185]
[1755195379400,0.78737469,117760.0,117750.0,0.5378464]
[1755195379598,0.46908767,117760.0,117750.0,0.5378464]
[1755195379993,0.42058767,117760.0,117750.0,0.5378464]
[1755195380511,0.42258767,117760.0,117750.0,0.5388464]
[1755195380802,0.55596677,117760.0,117750.0,0.001]
[1755195381007,0.55596677,117760.0,117750.0,0.45396]
[1755195381008,1.26456984,117760.0,117750.0,0.45396]
[1755195381304,0.55696687,117760.0,117750.0,0.5388464]
[1755195381503,0.47208767,117760.0,117750.0,0.5388464]
[1755195382100,0.55696687,117760.0,117750.0,0.5388464]
[1755195382299,0.55596687,117760.0,117750.0,0.45396]
[1755195382499,0.55496687,117760.0,117750.0,0.45296]
[1755195382703,0.47508767,117760.0,117750.0,0.5388464]
[1755195382994,0.47008767,117760.0,117750.0,0.5378464]
[1755195383199,0.55896687,117760.0,117750.0,0.5388464]
[1755195383397,0.55996687,117760.0,117750.0,0.45396]
[1755195384103,1.26756994,117760.0,117750.0,0.001]
[1755195384295,0.1624736,117740.0,117730.0,0.40528263]
[1755195384508,2.09085434,117740.0,117730.0,0.04225263]
[1755195384709,0.2640908,117730.0,117720.0,0.04896]
[1755195384901,1.26563154,117730.0,117720.0,0.04896]
[1755195385100,0.55802847,117730.0,117720.0,0.133868]
[1755195385406,0.42370767,117730.0,117720.0,0.516198]
[1755195385704,0.50940847,117730.0,117720.0,0.04175795]
[1755195385896,0.45575,117700.0,117690.0,0.6011465]
[1755195386101,1.38291,117700.0,117690.0,0.6011465]
[1755195386699,1.25878,117700.0,117690.0,0.6011465]
[1755195386899,1.00474,117700.0,117690.0,0.6011465]
[1755195387108,0.9722,117700.0,117690.0,0.6011465]
[1755195387307,0.9732,117700.0,117690.0,0.6051465]
[1755195387503,1.38391,117700.0,117690.0,0.6051465]
[1755195387709,2.09151307,117700.0,117690.0,0.6051465]
[1755195387902,2.09151307,117700.0,117690.0,0.64827245]
[1755195388102,1.4688324,117700.0,117690.0,0.04712595]
[1755195388309,1.4688324,117700.0,117690.0,0.004]
[1755195388310,2.17643547,117700.0,117690.0,0.004]
[1755195388810,2.17723547,117700.0,117690.0,0.004]
[1755195389004,2.17823547,117700.0,117690.0,0.004]
[1755195389211,1.4706324,117700.0,117690.0,0.004]
[1755195389410,2.17823547,117700.0,117690.0,0.0889296]
[1755195389609,2.17723547,117700.0,117690.0,0.0889296]
[1755195389810,2.09651307,117700.0,117690.0,0.0859296]
[1755195390404,2.09843307,117700.0,117690.0,0.1348896]
[1755195390604,2.09843307,117700.0,117690.0,0.2742996]
[1755195391311,2.09843307,117700.0,117690.0,0.1348896]
[1755195391709,1.38991,117700.0,117690.0,0.3291596]
[1755195391914,2.09751307,117700.0,117690.0,0.4685696]
[1755195392209,1.16935307,117700.0,117690.0,0.4685696]
[1755195392416,1.39011,117700.0,117690.0,0.5172196]
[1755195394502,0.08358,117700.0,117690.0,0.5172196]
[1755195394707,0.9792,117700.0,117690.0,0.5629566]
[1755195394903,0.006,117700.0,117690.0,0.5629566]
[1755195395102,0.93472,117700.0,117690.0,0.5629566]
[1755195395609,0.93456,117700.0,117690.0,0.5629566]
[1755195395812,0.93408,117700.0,117690.0,0.5629566]
[1755195396515,0.006,117700.0,117690.0,0.5629566]
[1755195396817,0.006,117700.0,117690.0,1.39555067]
[1755195397114,0.94653966,117710.0,117700.0,0.5162124]
[1755195397301,1.21871966,117710.0,117700.0,0.56190466]
[1755195397912,0.94653966,117710.0,117700.0,0.56190466]
[1755195398416,0.94853966,117710.0,117700.0,0.56190466]
[1755195399013,0.95153966,117710.0,117700.0,0.56290466]
[1755195399416,0.95185966,117710.0,117700.0,0.56290466]
[1755195399604,0.02365966,117710.0,117700.0,0.56290466]
[1755195399804,0.02365966,117710.0,117700.0,1.27050773]
[1755195400009,0.02365966,117710.0,117700.0,0.56290466]
[1755195400212,0.02365966,117710.0,117700.0,1.27050773]
[1755195400509,0.02365966,117710.0,117700.0,1.27130773]
[1755195400823,1.15398,117730.0,117720.0,0.516198]
[1755195401213,0.4750532,117740.0,117730.0,0.5161908]
[1755195401413,1.4025332,117740.0,117730.0,0.5161908]
[1755195401615,1.18265627,117740.0,117730.0,0.5161908]
[1755195401913,0.4750532,117740.0,117730.0,0.5151908]
[1755195402118,0.4256332,117740.0,117730.0,0.5151908]
[1755195402415,2.11025627,117740.0,117730.0,0.0839008]
[1755195402610,2.11225627,117740.0,117730.0,0.0849008]
[1755195403011,2.11325627,117740.0,117730.0,0.0859008]
[1755195403229,2.19814987,117740.0,117730.0,0.0859008]
[1755195403420,2.19814987,117740.0,117730.0,0.0869008]
[1755195403914,1.4056532,117740.0,117730.0,0.0869008]
[1755195404218,2.19814987,117740.0,117730.0,0.0869008]
[1755195404418,1.4056532,117740.0,117730.0,0.0869008]
[1755195404619,2.11325627,117740.0,117730.0,0.0869008]
[1755195404818,2.1297266,117740.0,117730.0,0.0869008]
[1755195405321,2.2146202,117740.0,117730.0,0.0869008]
[1755195405814,2.1297266,117740.0,117730.0,0.0869008]
[1755195407322,1.42108353,117740.0,117730.0,0.4499308]
[1755195407518,1.42108353,117740.0,117730.0,0.5181908]
[1755195407712,2.2135802,117740.0,117730.0,0.1684008]
[1755195407912,2.1286866,117740.0,117730.0,0.1358608]
[1755195408319,2.2135802,117740.0,117730.0,0.0869008]
[1755195409514,2.3842522,117740.0,117730.0,0.002]
[1755195409715,0.5406508,117730.0,117720.0,0.0849035]
[1755195410025,1.2647242,117730.0,117720.0,0.0849035]
[1755195410924,1.2657242,117730.0,117720.0,0.0869035]
[1755195411417,1.2657242,117730.0,117710.0,0.2547407]
[1755195411418,0.2640985,117720.0,117710.0,0.2547407]
[1755195411622,0.4546,117710.0,117700.0,0.2547594]
[1755195411823,1.16220307,117710.0,117700.0,0.2547594]
[1755195412623,0.4546,117710.0,117700.0,0.2547594]
[1755195412927,1.16220307,117710.0,117700.0,0.3037194]
[1755195413427,1.16420307,117710.0,117700.0,0.3077194]
[1755195414239,0.4566,117710.0,117700.0,0.3077194]
[1755195414415,1.16520307,117710.0,117700.0,0.3067194]
[1755195414620,1.25011877,117710.0,117700.0,0.3067194]
[1755195414819,1.25011877,117710.0,117700.0,0.3524203]
[1755195415027,1.16520307,117710.0,117700.0,0.3524203]
[1755195415228,1.16520307,117710.0,117700.0,0.4919703]
[1755195415530,1.16520307,117710.0,117700.0,0.5245103]
[1755195415822,1.33306,117710.0,117700.0,0.7411503]
[1755195416028,1.33306,117710.0,117700.0,0.7421503]
[1755195416229,1.38042,117710.0,117700.0,0.7421503]
[1755195416429,1.38042,117710.0,117700.0,0.7411503]
[1755195416729,1.14612,117710.0,117700.0,0.7421503]
[1755195416929,1.14412,117710.0,117700.0,0.7421503]
[1755195417132,1.14612,117710.0,117700.0,0.7451503]
[1755195417927,0.22104,117710.0,117700.0,0.7451503]
[1755195418231,1.14664,117710.0,117700.0,0.7451503]
[1755195419131,1.194,117710.0,117700.0,0.6670603]
[1755195419332,1.194,117710.0,117700.0,0.7399903]
[1755195421137,1.194,117710.0,117700.0,0.6670603]
[1755195421330,1.90160307,117710.0,117700.0,0.6670603]
[1755195421632,1.90160307,117710.0,117700.0,0.3821503]
[1755195422228,1.194,117710.0,117700.0,0.5217003]
[1755195422424,1.90160307,117710.0,117700.0,0.5217003]
[1755195422831,0.44869,117710.0,117700.0,0.6670603]
[1755195423132,1.37353,117710.0,117700.0,0.7399903]
[1755195423437,1.37353,117710.0,117700.0,0.3496103]
[1755195424034,1.37353,117710.0,117700.0,0.4891603]
[1755195424939,1.4584457,117710.0,117700.0,0.3044603]
[1755195425136,2.16604877,117710.0,117700.0,0.0497009]
[1755195426832,1.4584457,117710.0,117700.0,0.0497009]
[1755195427032,2.16604877,117710.0,117700.0,0.0497009]
[1755195427737,2.16604877,117710.0,117700.0,0.1346238]
[1755195428138,2.16604877,117710.0,117700.0,0.0497009]
[1755195428339,1.4584457,117710.0,117700.0,0.1346238]
[1755195428540,2.16604877,117710.0,117700.0,0.1346238]
[1755195429631,1.4584457,117710.0,117700.0,0.1346238]
[1755195429840,2.16604877,117710.0,117700.0,0.1346238]
[1755195430634,0.44869,117710.0,117700.0,0.1346238]
[1755195430837,1.37405,117710.0,117700.0,0.2141338]
[1755195431139,1.37405,117710.0,117700.0,0.5698238]
[1755195431342,0.44869,117710.0,117700.0,0.5698238]
[1755195431637,1.37289,117710.0,117700.0,0.5698238]
[1755195431844,1.00529,117710.0,117700.0,1.27822687]
[1755195432035,1.00529,117710.0,117700.0,0.5698238]
[1755195432235,1.00529,117710.0,117700.0,0.5241229]
[1755195432436,1.22433,117710.0,117700.0,0.5241229]
[1755195432836,1.27169,117710.0,117700.0,0.5241229]
[1755195433440,1.22433,117710.0,117700.0,0.5241229]
[1755195433642,1.27169,117710.0,117700.0,0.5241229]
[1755195434837,1.27169,117710.0,117700.0,0.56995461]
[1755195435240,0.002,117710.0,117700.0,1.44827768]
[1755195435442,0.04686,117730.0,117720.0,0.5209085]
[1755195435636,0.98440602,117730.0,117720.0,0.5201085]
[1755195436129,1.05699602,117730.0,117720.0,0.5201085]
[1755195436937,1.05799602,117730.0,117720.0,0.5211085]
[1755195437535,1.12813602,117730.0,117720.0,0.5211085]
[1755195437738,1.12913602,117730.0,117720.0,0.5221085]
[1755195437940,0.01834602,117730.0,117720.0,1.23051157]
[1755195438145,0.93758602,117730.0,117720.0,1.40039956]
[1755195438438,0.01834602,117730.0,117720.0,1.40039956]
[1755195438644,0.20793602,117730.0,117720.0,0.69199649]
[1755195440042,0.34136602,117730.0,117720.0,0.5221085]
[1755195440233,0.37869602,117730.0,117720.0,0.4491785]
[1755195440439,1.08629909,117730.0,117720.0,0.0869085]
[1755195440738,1.08629909,117730.0,117720.0,0.1320585]
[1755195441144,1.04896909,117730.0,117720.0,0.0869085]
[1755195441344,1.04896909,117730.0,117720.0,0.002]
[1755195441345,1.08709909,117730.0,117720.0,0.002]
[1755195441644,1.17200039,117730.0,117720.0,0.002]
[1755195442045,0.4432585,117720.0,117710.0,0.0849095]
[1755195442245,1.99881909,117720.0,117710.0,0.0849095]
[1755195442640,1.99881909,117720.0,117710.0,0.1300595]
[1755195443446,1.99881909,117720.0,117710.0,0.1310595]
[1755195444146,1.99981909,117720.0,117710.0,0.1320595]
[1755195444842,2.00081909,117720.0,117710.0,0.1320595]
[1755195445443,2.08572759,117720.0,117710.0,0.1320595]
[1755195445643,2.08572759,117720.0,117710.0,0.0859157]
[1755195445846,2.08772759,117720.0,117710.0,0.0869157]
[1755195446144,2.00281909,117720.0,117710.0,0.0869157]
[1755195446548,2.00281909,117720.0,117710.0,0.1334357]
[1755195448946,1.29521602,117720.0,117710.0,0.1334357]
[1755195449148,2.00281909,117720.0,117710.0,0.1334357]
[1755195449545,0.34336602,117720.0,117710.0,0.1334357]
[1755195449742,0.34336602,117720.0,117710.0,0.5264657]
[1755195449743,1.25200602,117720.0,117710.0,0.5264657]
[1755195450137,0.34336602,117720.0,117710.0,0.5264657]
[1755195450348,0.02034602,117720.0,117710.0,1.23486877]
[1755195450650,0.004,117720.0,117710.0,1.23486877]
[1755195450948,0.91132,117720.0,117710.0,1.23486877]
[1755195451248,0.004,117720.0,117710.0,1.23486877]
[1755195451647,0.0192685,117730.0,117720.0,0.5244585]
[1755195451852,0.9256285,117730.0,117720.0,0.5244585]
[1755195452155,1.1119785,117730.0,117720.0,0.5244585]
[1755195452754,0.95525,117730.0,117720.0,0.5252585]
[1755195452942,0.32770112,117750.0,117740.0,0.36953]
[1755195453257,1.18091434,117750.0,117740.0,0.5234441]
[1755195453449,1.18091434,117750.0,117740.0,0.5214441]
[1755195453953,0.25335908,117750.0,117740.0,0.5214441]
[1755195454149,0.96984908,117750.0,117740.0,0.5214441]
[1755195454343,1.03841908,117750.0,117740.0,0.5224441]
[1755195454544,1.0394169,117750.0,117740.0,0.5234441]
[1755195455251,1.1496369,117750.0,117740.0,0.5234441]
[1755195456248,1.1466369,117750.0,117740.0,0.5264441]
[1755195457556,1.1083069,117750.0,117740.0,0.0898941]
[1755195457744,1.1466369,117750.0,117740.0,0.5294441]
[1755195460349,1.1466369,117750.0,117740.0,0.0898941]
[1755195460557,1.85423997,117750.0,117740.0,0.005]
[1755195461049,1.85423997,117750.0,117740.0,0.0898941]
[1755195461254,1.85423997,117750.0,117740.0,0.1364141]
[1755195461655,1.1466369,117750.0,117740.0,0.1364141]
[1755195461956,1.1466369,117750.0,117740.0,0.2821741]
[1755195462156,1.1466369,117750.0,117740.0,0.1364141]
[1755195463355,1.85423997,117750.0,117740.0,0.1364141]
[1755195464660,1.93912687,117750.0,117740.0,0.005]
[1755195465154,1.85423997,117750.0,117740.0,0.0898941]
[1755195465755,1.85423997,117750.0,117740.0,0.1364141]
[1755195466341,1.1466369,117750.0,117740.0,0.1364141]
[1755195466556,1.85423997,117750.0,117740.0,0.1364141]
[1755195467356,1.2606969,117750.0,117740.0,0.3836841]
[1755195467557,0.9931069,117750.0,117740.0,0.5294441]
[1755195467760,0.9931069,117750.0,117740.0,1.23704717]
[1755195468054,1.1305669,117750.0,117740.0,0.4594241]
[1755195468252,1.1688969,117750.0,117740.0,0.0898941]
[1755195468558,1.87649997,117750.0,117740.0,0.0898941]
[1755195469255,1.1305669,117750.0,117740.0,0.5294441]
[1755195469756,1.1688969,117750.0,117740.0,0.5294441]
[1755195469962,1.87649997,117750.0,117740.0,0.0898941]
[1755195470661,1.87649997,117750.0,117740.0,0.1364141]
[1755195471858,1.87649997,117750.0,117740.0,0.0898941]
[1755195472656,1.96138707,117750.0,117740.0,0.005]
[1755195472958,1.96138707,117750.0,117740.0,0.0898944]
[1755195474263,1.253784,117750.0,117740.0,0.0898944]
[1755195474463,1.96138707,117750.0,117740.0,0.0898944]
[1755195474664,1.78639727,117750.0,117710.0,0.0849139]
[1755195474861,0.34217,117720.0,117710.0,0.2787739]
[1755195475064,1.2556869,117720.0,117710.0,0.5252639]
[1755195475362,1.2173569,117720.0,117710.0,0.5252639]
[1755195475566,0.3202769,117720.0,117710.0,0.5260639]
[1755195475764,0.3202769,117720.0,117710.0,0.5310639]
[1755195476157,0.0164369,117720.0,117710.0,1.23866697]
[1755195476355,1.02875344,117730.0,117720.0,0.2592389]
[1755195476567,1.11461404,117730.0,117720.0,0.5252589]
[1755195477467,1.11561404,117730.0,117720.0,0.5282589]
[1755195477767,1.15394404,117730.0,117720.0,0.5282589]
[1755195479062,1.15294404,117730.0,117720.0,0.5262589]
[1755195479264,1.15394404,117730.0,117720.0,0.5262589]
[1755195479969,1.15294404,117730.0,117720.0,0.5262589]
[1755195480164,0.37853404,117730.0,117720.0,0.5262589]
[1755195480373,1.27985404,117730.0,117720.0,0.5262589]
[1755195484173,2.07235871,117730.0,117720.0,0.0859089]
[1755195484468,1.98745711,117730.0,117720.0,0.1338589]
[1755195485056,1.98745711,117730.0,117720.0,0.2797689]
[1755195485357,1.98645711,117730.0,117720.0,0.1338589]
[1755195485562,1.98845711,117730.0,117720.0,0.1338589]
[1755195485764,1.28085404,117730.0,117720.0,0.1338589]
[1755195485963,1.98845711,117730.0,117720.0,0.1338589]
[1755195486164,1.98645711,117730.0,117720.0,0.1338589]
[1755195486558,1.98745711,117730.0,117720.0,0.1348589]
[1755195487157,2.07235871,117730.0,117720.0,0.0869089]
[1755195488360,2.07235871,117730.0,117720.0,0.0859089]
[1755195488361,2.07335871,117730.0,117720.0,0.0859089]
[1755195488868,2.07235871,117730.0,117720.0,0.0859089]